fUST/lending_fUST_20240401
["ID","MTS","AMOUNT","RATE_DAILY","PERIOD"]
[321181398,1711950632293,-537.93325733,0.00071999,30]
[321181400,1711950632305,-335.99,0.00072,120]
[321181403,1711950632317,-1799.73,0.00073196,7]
[321181405,1711950632328,-1200.0,0.00073196,120]
[321181406,1711950632340,-6384.00425098,0.00073197,7]
[321181408,1711950632351,-471.97962507,0.00073198,4]
[321181410,1711950632362,-185.6940571,0.00073247,2]
[321181412,1711950632373,-250.0,0.00075254,120]
[321181414,1711950632383,-3275.5010913,0.00075298,2]
[321181416,1711950632394,-400.0,0.00075318,120]
[321181418,1711950632404,-24900.0,0.00075319,2]
[321181420,1711950632414,-472.191789,0.00075354,30]
[321181422,1711950632425,-171.510352,0.00075741,2]
[321181424,1711950632441,-1000.0,0.000765,30]
[321181425,1711950632452,-500.0,0.00076712,2]
[321181426,1711950632467,-451.4,0.00076986,2]
[321181427,1711950632479,-2000.0,0.00077125,120]
[321181428,1711950632490,-500.0,0.00077442,90]
[321181429,1711950632501,-500.0,0.00077716,90]
[321181430,1711950632513,-3189.98897759,0.0007777,120]
[321181431,1711950632523,-500.0,0.00077796,120]
[321181432,1711950632533,-500.0,0.00077796,120]
[321181433,1711950632651,-1393.05,0.00077796,120]
[321181435,1711950632664,-500.0,0.0007799,90]
[321181437,1711950632675,-500.0,0.0007807,120]
[321181439,1711950632686,-204.03611474,0.0007807,120]
[321181441,1711950632697,-1393.05,0.0007807,120]
[321181443,1711950632708,-185.12002188,0.00078127,120]
[321181445,1711950632726,-471.97962507,0.00078198,4]
[321181447,1711950632737,-500.0,0.00078264,90]
[321181448,1711950632751,-500.0,0.00078344,120]
[321181451,1711950632762,-1393.05,0.00078344,120]
[321181453,1711950632773,-500.0,0.00078538,90]
[321181455,1711950632784,-500.0,0.00078618,120]
[321181456,1711950632794,-503.38391059,0.00078618,120]
[321181457,1711950632807,-889.66608941,0.00078618,120]
[321181458,1711950632818,-97.22935228,0.00078792,2]
[321181533,1711950642244,-1841.84562928,0.00075,120]
[321181535,1711950642258,-323.6531045,0.00075,120]
[321181663,1711950643283,-48056.88054291,0.00075,120]
[321181665,1711950643297,-60840.54901163,0.00075,120]
[321181678,1711950643430,-702.15,0.00075,120]
[321181680,1711950643444,-436.93890702,0.00075,120]
[321181682,1711950643458,-10937.38264709,0.00075,120]
[321181684,1711950643471,-1426.74946702,0.00075,120]
[321181687,1711950643485,-5372.65440806,0.00075,120]
[321181701,1711950643729,-4286.04999997,0.00075,120]
[321181702,1711950643742,-27337.03089809,0.00075,120]
[321181705,1711950643774,-299.25782613,0.00075,120]
[321181706,1711950643787,-1261.97251786,0.00075,120]
[321181708,1711950643800,-10437.0,0.00075,120]
[321181787,1711950646284,-300.86423175,0.00075,120]
[321181788,1711950646298,-1785.61,0.00075,120]
[321181789,1711950646311,-496.25,0.00075,120]
[321181791,1711950651852,172.015266,0.0004,2]
[321181792,1711950652512,-321.43035,0.00075,120]
[321181799,1711950881877,722.57433899,0.00025,2]
[321181800,1711950882476,196.21302817,0.00021,2]
[321181801,1711950882646,2258.53832494,0.0002877,2]
[321181802,1711950882813,15937.75959319,0.0002877,2]
[321181804,1711950911601,567.50858415,0.0002877,5]
[321181807,1711950923605,596.14293284,0.0002877,5]
[321181811,1711951134290,719.98342272,0.00040701,4]
[321181812,1711951140341,861.86591021,0.00040701,4]
[321181813,1711951140537,550.0,0.00040701,5]
[321181814,1711951140677,1052.5425936,0.00040701,4]
[321181815,1711951145271,1599.76,0.00040701,4]
[321181816,1711951150485,501.6579087,0.00040701,4]
[321181817,1711951154904,154.84515485,0.00040701,4]
[321181818,1711951157710,400.0,0.00040701,2]
[321181819,1711951158498,165.770542,0.0004,2]
[321181820,1711951158675,277.27711144,0.00040701,4]
[321181821,1711951159609,154.84515485,0.00040701,4]
[321181822,1711951175765,2002.63249005,0.00040701,4]
[321181823,1711951177387,323.78353088,0.00040701,4]
[321181824,1711951233458,154.84515485,0.00040701,4]
[321181825,1711951407716,240.86518521,0.00040701,4]
[321181826,1711951409539,3206.90621842,0.00040701,4]
[321181827,1711951418979,154.84515485,0.00040701,4]
[321181829,1711951487347,200.0,0.00040181,2]
[321181832,1711951576593,660.636076,0.00040209,2]
[321181833,1711951632287,-719.98342272,0.00040704,4]
[321181834,1711951632306,-600.88074263,0.00040704,4]
[321181835,1711951645841,984.3322342,0.00040229,2]
[321181836,1711951680294,250.0,0.0004027,2]
[321181837,1711951711541,775.1999033,0.00040323,2]
[321181838,1711951740753,243.0358808,0.00040323,120]
[321181839,1711951751370,302.58787374,0.00038601,2]
[321181843,1711951767138,-998.87925737,0.00040704,4]
[321181844,1711951767158,-545.05745774,0.00040705,4]
[321181845,1711951767178,-163.8223006,0.00040715,2]
[321181846,1711951767202,-7046.79955971,0.0004075,2]
[321181847,1711951767223,-166.666666,0.00041096,2]
[321181848,1711951767242,-550.0,0.00041332,5]
[321181849,1711951767262,-316.0,0.00041526,3]
[321181850,1711951767283,-1404.76296758,0.00041527,2]
[321181851,1711951767303,-164.49122104,0.00041527,10]
[321181852,1711951767323,-179.0566593,0.0004156,4]
[321181853,1711951767342,-242.71787132,0.0004156,4]
[321181854,1711951767361,-644.93118115,0.00041561,4]
[321181855,1711951767381,-484.60645388,0.00041561,31]
[321181856,1711951767403,-155.47297975,0.00041561,31]
[321181857,1711951767423,-500.0,0.00041561,31]
[321181858,1711951767443,-454.26599207,0.00041561,31]
[321181859,1711951767466,-459.01305163,0.00041561,31]
[321181923,1711951832173,-261.0,0.00041561,5]
[321181924,1711951832183,-24900.0,0.00041562,2]
[321181925,1711951832193,-179.8162,0.00041627,2]
[321181926,1711951832203,-1707.1882636,0.00041687,2]
[321181927,1711951832212,-337.5328967,0.0004172,2]
[321181928,1711951832221,-538.1550831,0.00041768,2]
[321181929,1711951832230,-2914.6129397,0.00041898,2]
[321181930,1711951832239,-166.666666,0.00042058,2]
[321181931,1711951832248,-166.666666,0.00043019,2]
[321181932,1711951832257,-1404.76296756,0.00043449,2]
[321181933,1711951832267,-302.58787374,0.00043601,2]
[321181934,1711951832275,-166.666666,0.00043981,2]
[321181935,1711951832284,-166.666666,0.00044942,2]
[321181936,1711951832293,-1404.76296756,0.00045371,2]
[321181937,1711951832302,-166.666666,0.00045904,2]
[321181939,1711951832314,-460.36770628,0.000469,2]
[321181941,1711951832323,-500.0,0.00046975,120]
[321181943,1711951832332,-261.97555429,0.00046975,120]
[321181945,1711951832340,-11073.02566453,0.00046976,4]
[321181947,1711951832348,-500.0,0.00046979,2]
[321181949,1711951832357,-13102.84092619,0.0004698,120]
[321181951,1711951832366,-20346.25371989,0.00047,4]
[321181953,1711951832374,-113.1079328,0.00047034,2]
[321181954,1711951832386,-389.89010704,0.00047034,2]
[321181956,1711951832395,-1404.76296756,0.00047293,2]
[321181958,1711951832405,-157.14285715,0.0004797,30]
[321181959,1711951832414,-302.58787374,0.00048601,2]
[321181961,1711951832423,-1563.546907,0.00049,2]
[321181963,1711951832435,-3361.32360003,0.00049214,120]
[321181965,1711951832444,-1404.76296756,0.00049215,2]
[321181967,1711951832453,-23742.2703989,0.00049315,120]
[321181969,1711951832462,-2714.75748462,0.000499,2]
[321181970,1711951832473,-2664.36639419,0.00049997,4]
[321181971,1711951832482,-1805.30081977,0.00049997,4]
[321181972,1711951832492,-170.60157718,0.00049997,4]
[321181973,1711951832501,-333.44966746,0.00049997,4]
[321181974,1711951832511,-155.22232899,0.00049997,4]
[321181976,1711951832520,-2520.72702903,0.00049998,4]
[321181978,1711951832529,-2622.14883793,0.00049998,120]
[321181980,1711951832538,-344.68593921,0.00049998,2]
[321181982,1711951832547,-317.6161856,0.00049998,2]
[321181983,1711951832558,-458.18809061,0.00049998,4]
[321181984,1711951832567,-326.95329628,0.00049998,4]
[321181986,1711951832576,-202.91720788,0.00049998,4]
[321181988,1711951832585,-157.89824179,0.00049998,4]
[321181989,1711951832594,-372.44761954,0.00049998,4]
[321181990,1711951832603,-290.24935895,0.00049998,2]
[321181991,1711951832613,-157.63864859,0.00049998,4]
[321181992,1711951832622,-379.50666869,0.00049998,4]
[321181993,1711951832631,-743.02302405,0.00049998,4]
[321181994,1711951832641,-1445.17560891,0.00049998,4]
[321181995,1711951832650,-7549.63,0.00049999,7]
[321181996,1711951832659,-181.81913525,0.00049999,7]
[321181997,1711951832671,-3261.073332,0.00049999,7]
[321181998,1711951832682,-4106.73753275,0.00049999,7]
[321181999,1711951832692,-7549.63,0.00049999,7]
[321182000,1711951832787,-177.52708838,0.00049999,60]
[321182001,1711951832797,-222.6098582,0.0005,120]
[321182002,1711951832806,-360.83108321,0.0005,4]
[321182003,1711951832817,-9041.74472197,0.0005,120]
[321182053,1711951838529,-358.40738442,0.00041561,31]
[321182055,1711951838539,-460.36770628,0.000484,2]
[321182057,1711951838548,-102752.73504553,0.0005,120]
[321182059,1711951838656,-168669.72643848,0.0005,120]
[321182060,1711951838669,-13529.11680612,0.0005,120]
[321182061,1711951838679,-205.83558861,0.0005,20]
[321182062,1711951838689,-11018.61198166,0.0005,30]
[321182063,1711951838701,-14157.88065877,0.0005,2]
[321182064,1711951838712,-229.37135426,0.0005,120]
[321182065,1711951838722,-283072.23734199,0.0005,120]
[321182355,1711951842938,-460.36770628,0.000499,2]
[321182360,1711951842948,-25221.71431372,0.0005,120]
[321182366,1711951842959,-3157.596065,0.0005,120]
[321182447,1711951843641,-823.80943505,0.0005,120]
[321182449,1711951843653,-877.96458992,0.0005,120]
[321182452,1711951843664,-1139.66543303,0.0005,120]
[321182815,1711951846921,-3693.24108064,0.0005,120]
[321184433,1711951912707,500.0,0.0004,2]
[321184434,1711951928734,500.0,0.000401,2]
[321184437,1711951941994,500.0,0.000407,2]
[321184438,1711951955863,500.0,0.000407,2]
[321184439,1711951976717,200.0,0.0004,2]
[321184440,1711951992881,500.0,0.000407,2]
[321184441,1711952040185,210.16972615,0.00037499,4]
[321184442,1711952056007,210.89171517,0.00037499,4]
[321184446,1711952282316,1010.74787401,0.00037499,4]
[321184447,1711952296231,1010.74787401,0.00037499,4]
[321184448,1711952316234,186.11376904,0.00037499,4]
[321184457,1711952832598,-368.63237732,0.00043869,4]
[321184458,1711952832621,-197.85953,0.0004387,120]
[321184459,1711952832643,-84.57370159,0.00044026,2]
[321184460,1711952897117,-543.85156948,0.00043806,14]
[321184461,1711952897138,-165.42629841,0.00044026,2]
[321184462,1711952897158,-1694.304722,0.00044072,2]
[321184463,1711952897177,-200.0,0.00044087,2]
[321184464,1711952897198,-5937.8119324,0.00044106,2]
[321184465,1711952897218,-166.666666,0.00044785,2]
[321184466,1711952897237,-289.0,0.00045,2]
[321184467,1711952897256,-550.0,0.00045183,3]
[321184468,1711952897276,-550.0,0.00045183,5]
[321184469,1711952916568,-24900.0,0.00045184,2]
[321184470,1711952916598,-164.49122103,0.0004532,12]
[321184471,1711952916626,-182.55515523,0.0004542,2]
[321184472,1711952916654,-1855.346117,0.00045575,2]
[321184473,1711952916682,-166.666666,0.00046006,2]
[321184474,1711952916710,-681.94036135,0.00047078,15]
[321184475,1711952916738,-166.666666,0.00047226,2]
[321184476,1711952916769,-204.38522615,0.000479,2]
[321184477,1711952916797,-210.0,0.00048,90]
[321184478,1711952916824,-210.0,0.00048356,90]
[321184479,1711952916853,-166.666666,0.00048447,2]
[321184480,1711952916881,-500.0,0.00048999,2]
[321184481,1711952916909,-3361.32360003,0.00049,120]
[321184482,1711952916937,-500.0,0.00049054,2]
[321184483,1711952916965,-500.0,0.00049109,2]
[321184484,1711952916994,-500.0,0.00049164,2]
[321184485,1711952917024,-500.0,0.00049218,2]
[321184486,1711952917052,-500.0,0.00049273,2]
[321184487,1711952917079,-166.666666,0.00049668,2]
[321184488,1711952917108,-326.56095184,0.00049997,120]
[321184489,1711952917135,-292.20478428,0.00049998,4]
[321184490,1711952917162,-8676.15065072,0.00049998,120]
[321184491,1711952917197,-593.70797925,0.00049998,2]
[321184492,1711952917225,-230.72571167,0.00049998,2]
[321184493,1711952917315,-370.42742761,0.00049998,4]
[321184494,1711952931819,2427.7684537,0.00049998,120]
[321184495,1711952936607,1645.74569614,0.00046,120]
[321184496,1711952936636,1272.3875814,0.00046,120]
[321184497,1711952950756,-799.92,0.00049999,4]
[321184498,1711952950778,-187.0,0.0005,2]
[321184499,1711952950797,-9236.83187591,0.0005,120]
[321184500,1711952951418,300.15471224,0.00037499,4]
[321184501,1711952956628,150.0,0.000479,2]
[321184502,1711952963527,-23208.32838288,0.0005,120]
[321184503,1711952963558,-8499.84054553,0.0005,120]
[321184504,1711952963587,-400.0,0.0005,120]
[321184505,1711952963616,-400.93383448,0.0005,120]
[321184508,1711953010289,-210.0,0.00050486,120]
[321184509,1711953010319,-166.666666,0.00050889,2]
[321184510,1711953027366,-150.0,0.000529,2]
[321184511,1711953027394,-215.0,0.00053011,120]
[321184512,1711953027424,-166.666666,0.0005434,2]
[321184513,1711953027451,-1000.0,0.0005468,110]
[321184514,1711953027478,-182.55515523,0.00054695,2]
[321184515,1711953027505,-500.0,0.00054795,120]
[321184516,1711953027531,-500.0,0.00054795,120]
[321184517,1711953027558,-485.34694309,0.00054795,120]
[321184585,1711953032952,13529.11680612,0.0005,120]
[321184602,1711953038440,-166.666666,0.00055821,2]
[321184603,1711953038453,-7804.28546391,0.00056474,2]
[321184604,1711953038468,-19698.22030957,0.00056474,2]
[321184605,1711953038478,-210.0,0.00056545,120]
[321184606,1711953038489,-166.666666,0.00057303,2]
[321184607,1711953038498,-166.666666,0.00058784,2]
[321184608,1711953038508,-3540.88483787,0.00058889,120]
[321184609,1711953038517,-445.60408293,0.00059999,120]
[321184610,1711953038526,-400.0,0.0006,120]
[321184611,1711953038535,-9562.32061373,0.0006,120]
[321184612,1711953038544,-210.0,0.00060079,120]
[321184613,1711953038553,-166.666666,0.00060266,2]
[321184614,1711953038563,-210.0,0.00060584,120]
[321184615,1711953038572,-1500.098,0.000616,90]
[321184616,1711953038581,-166.666666,0.00061747,2]
[321184617,1711953038590,-150.96371262,0.00062851,120]
[321184618,1711953038599,-210.0,0.00063613,120]
[321184619,1711953038608,-1499.902,0.000638,110]
[321184620,1711953038617,-1694.304722,0.00066107,30]
[321184621,1711953038626,-150.83408251,0.00066802,2]
[321184622,1711953038635,-4000.0,0.00067031,120]
[321184623,1711953038644,-301.66816502,0.00067924,4]
[321184624,1711953038653,-1030.79440608,0.00068,90]
[321184625,1711953038662,-603.33633004,0.00069066,7]
[321184626,1711953038671,-13747.42657156,0.00069999,30]
[321184627,1711953038680,-456.3596485,0.0007,120]
[321184628,1711953038689,-2078.00942297,0.0007,2]
[321184629,1711953038698,-13362.7953178,0.0007,120]
[321184630,1711953038707,-300.0,0.0007,120]
[321184631,1711953038716,-166.81042853,0.00070227,4]
[321184632,1711953038725,-1206.67266007,0.00070814,30]
[321184633,1711953038734,-150.96371262,0.00072372,120]
[321184634,1711953038743,-28542.69235426,0.000725,120]
[321184635,1711953038753,-153.0,0.00073041,60]
[321184636,1711953038763,-153.0,0.00073041,60]
[321184637,1711953038772,-153.0,0.00073041,60]
[321184638,1711953038785,-153.0,0.00073096,60]
[321184639,1711953038794,-153.0,0.00073096,60]
[321184640,1711953038803,-153.0,0.00073096,60]
[321184641,1711953038813,-153.0,0.00073096,60]
[321184642,1711953038824,-153.0,0.00073096,60]
[321184643,1711953038833,-153.0,0.00073096,60]
[321184644,1711953038843,-153.0,0.00073096,60]
[321184645,1711953038852,-153.0,0.00073096,60]
[321184646,1711953038864,-153.0,0.00073096,60]
[321184647,1711953038875,-153.0,0.00073096,60]
[321184648,1711953038884,-262.2566347,0.0007337,60]
[321184649,1711953038894,-202.3118837,0.0007337,60]
[321184650,1711953038903,-265.5255548,0.0007337,60]
[321184651,1711953038913,-153.0,0.0007337,120]
[321184652,1711953038923,-153.0,0.0007337,60]
[321184653,1711953038934,-202.3118837,0.0007337,60]
[321184654,1711953038945,-153.0,0.0007337,60]
[321184655,1711953038956,-153.0,0.0007337,60]
[321184656,1711953038965,-202.3118837,0.0007337,60]
[321184657,1711953038975,-153.0,0.0007337,60]
[321184658,1711953038984,-153.0,0.0007337,60]
[321184659,1711953038994,-153.0,0.0007337,60]
[321184660,1711953039083,-202.3118837,0.0007337,60]
[321184661,1711953039093,-153.0,0.0007337,120]
[321184662,1711953039103,-153.0,0.0007337,60]
[321184663,1711953039112,-153.0,0.0007337,60]
[321184664,1711953039124,-202.3118837,0.0007337,60]
[321184665,1711953039134,-153.0,0.0007337,120]
[321184666,1711953039143,-202.3118837,0.0007337,60]
[321184667,1711953039152,-153.0,0.0007337,60]
[321184668,1711953039161,-202.3118837,0.0007337,60]
[321184669,1711953039169,-153.0,0.0007337,60]
[321184670,1711953039178,-153.0,0.0007337,120]
[321184671,1711953039187,-153.0,0.0007337,60]
[321184672,1711953039196,-202.3118837,0.0007337,60]
[321184673,1711953039206,-153.0,0.0007337,60]
[321184674,1711953039214,-202.3118837,0.0007337,60]
[321184675,1711953039224,-153.0,0.0007337,120]
[321184676,1711953039234,-202.3118837,0.0007337,60]
[321184677,1711953039243,-153.0,0.0007337,60]
[321184678,1711953039252,-202.3118837,0.0007337,60]
[321184679,1711953039262,-153.0,0.0007337,60]
[321184680,1711953039271,-153.0,0.0007337,120]
[321184681,1711953039280,-153.0,0.0007337,60]
[321184682,1711953039289,-202.3118837,0.0007337,60]
[321184683,1711953039298,-153.0,0.0007337,60]
[321184684,1711953039307,-202.3118837,0.0007337,60]
[321184685,1711953039316,-153.0,0.0007337,120]
[321184686,1711953039326,-202.3118837,0.0007337,60]
[321184687,1711953039335,-153.0,0.0007337,60]
[321184688,1711953039345,-153.0,0.0007337,60]
[321184689,1711953039355,-153.0,0.0007337,60]
[321184690,1711953039364,-202.3118837,0.0007337,60]
[321184691,1711953039373,-153.0,0.0007337,60]
[321184692,1711953039382,-153.0,0.0007337,120]
[321184693,1711953039391,-153.0,0.0007337,60]
[321184694,1711953039400,-202.3118837,0.0007337,60]
[321184695,1711953039410,-153.0,0.0007337,60]
[321184696,1711953039419,-153.0,0.0007337,60]
[321184697,1711953039429,-202.3118837,0.0007337,60]
[321184698,1711953039438,-153.0,0.0007337,60]
[321184699,1711953039446,-153.0,0.0007337,120]
[321184700,1711953039456,-153.0,0.0007337,60]
[321184701,1711953039465,-153.0,0.0007337,60]
[321184702,1711953039474,-202.3118837,0.0007337,60]
[321184703,1711953039484,-381.76500217,0.00073499,7]
[321184704,1711953039493,-153.0,0.00073863,60]
[321184705,1711953039503,-153.0,0.00073863,60]
[321184706,1711953039514,-153.0,0.00073863,60]
[321184707,1711953039523,-153.0,0.00073863,60]
[321184708,1711953039532,-153.0,0.00073863,60]
[321184709,1711953039542,-153.0,0.00073863,60]
[321184710,1711953039551,-153.0,0.00073863,60]
[321184711,1711953039561,-153.0,0.00073863,60]
[321184712,1711953039570,-153.0,0.00073863,60]
[321184713,1711953039579,-153.0,0.00073863,60]
[321184714,1711953039588,-153.0,0.00073863,60]
[321184717,1711953039597,-153.0,0.00073863,60]
[321184718,1711953039606,-153.0,0.00073863,60]
[321184719,1711953039617,-153.0,0.00073863,60]
[321184720,1711953039626,-153.0,0.00073863,60]
[321184721,1711953039635,-153.0,0.00073863,60]
[321184722,1711953039645,-153.0,0.00073863,60]
[321184723,1711953039654,-153.0,0.00073863,60]
[321184724,1711953039663,-153.0,0.00073863,60]
[321184725,1711953039672,-153.0,0.00073863,60]
[321184726,1711953039681,-153.0,0.00073863,60]
[321184727,1711953039690,-153.0,0.00073863,60]
[321184728,1711953039699,-153.0,0.00073863,60]
[321184729,1711953039708,-153.0,0.00073863,60]
[321184731,1711953039718,-153.0,0.00073863,60]
[321184732,1711953039727,-153.0,0.00073863,60]
[321184733,1711953039736,-153.0,0.00073863,60]
[321184734,1711953039745,-153.0,0.00073863,60]
[321184735,1711953039754,-153.0,0.00073863,60]
[321184736,1711953039765,-324.5838289,0.00073918,60]
[321184737,1711953039774,-153.0,0.00073918,60]
[321184738,1711953039785,-153.0,0.00073918,60]
[321184739,1711953039796,-153.0,0.00073918,60]
[321184740,1711953039805,-153.0,0.00073918,60]
[321184741,1711953039815,-153.0,0.00073918,60]
[321184742,1711953039824,-2000.0,0.00073934,120]
[321184743,1711953039834,-154.93783678,0.00074174,2]
[321184744,1711953039843,-591.53307832,0.0007419,7]
[321184745,1711953039853,-1840.43390347,0.0007419,120]
[321184746,1711953039865,-153.0,0.00074192,60]
[321184748,1711953039874,-153.0,0.00074192,60]
[321184749,1711953039883,-153.0,0.00074192,60]
[321184750,1711953039892,-153.0,0.00074192,60]
[321184752,1711953039901,-153.0,0.00074192,60]
[321184754,1711953039910,-153.0,0.00074192,60]
[321184756,1711953039919,-153.0,0.00074192,60]
[321184758,1711953039929,-153.0,0.00074192,60]
[321184760,1711953039938,-153.0,0.00074192,60]
[321184761,1711953039947,-153.0,0.00074192,60]
[321184762,1711953039956,-153.0,0.00074192,60]
[321184763,1711953039965,-153.0,0.00074192,60]
[321184764,1711953039975,-153.0,0.00074192,60]
[321184765,1711953039984,-153.0,0.00074192,60]
[321184766,1711953039993,-153.0,0.00074192,60]
[321184767,1711953040002,-153.0,0.00074192,60]
[321184768,1711953040012,-153.0,0.00074192,60]
[321184769,1711953040021,-153.0,0.00074192,60]
[321184770,1711953040031,-153.0,0.00074192,60]
[321184771,1711953040040,-153.0,0.00074192,120]
[321184772,1711953040049,-153.0,0.00074192,60]
[321184773,1711953040059,-153.0,0.00074192,60]
[321184774,1711953040068,-153.0,0.00074192,60]
[321184775,1711953040078,-153.0,0.00074192,120]
[321184777,1711953040086,-20.2223235,0.00074192,60]
[321184779,1711953040100,-132.7776765,0.00074192,60]
[321184781,1711953040109,-153.0,0.00074192,60]
[321184783,1711953040118,-153.0,0.00074192,60]
[321184784,1711953040127,-153.0,0.00074192,60]
[321184785,1711953040136,-153.0,0.00074192,120]
[321184786,1711953040145,-153.0,0.00074192,60]
[321184787,1711953040154,-153.0,0.00074192,60]
[321184788,1711953040164,-153.0,0.00074192,60]
[321184789,1711953040173,-153.0,0.00074192,60]
[321184790,1711953040182,-153.0,0.00074192,60]
[321184791,1711953040192,-153.0,0.00074192,60]
[321184792,1711953040201,-153.0,0.00074192,120]
[321184793,1711953040210,-153.0,0.00074192,60]
[321184794,1711953040219,-153.0,0.00074192,60]
[321184795,1711953040228,-153.0,0.00074192,60]
[321184796,1711953040237,-153.0,0.00074192,60]
[321184797,1711953040246,-153.0,0.00074192,120]
[321184799,1711953040255,-153.0,0.00074192,60]
[321184801,1711953040266,-153.0,0.00074192,60]
[321184802,1711953040275,-153.0,0.00074192,60]
[321184803,1711953040283,-153.0,0.00074192,60]
[321184804,1711953040293,-153.0,0.00074192,60]
[321184805,1711953040302,-153.0,0.00074192,60]
[321184806,1711953040311,-153.0,0.00074192,60]
[321184807,1711953040320,-153.0,0.00074192,120]
[321184808,1711953040329,-153.0,0.00074192,60]
[321184809,1711953040338,-153.0,0.00074192,60]
[321184810,1711953040347,-153.0,0.00074192,60]
[321184811,1711953040358,-153.0,0.00074192,60]
[321184812,1711953040367,-153.0,0.00074192,60]
[321184813,1711953040376,-153.0,0.00074192,60]
[321184814,1711953040385,-153.0,0.00074192,60]
[321184815,1711953040394,-153.0,0.00074192,60]
[321184816,1711953040403,-153.0,0.00074192,60]
[321184817,1711953040413,-153.0,0.00074192,60]
[321184818,1711953040422,-153.0,0.00074192,60]
[321184819,1711953040431,-153.0,0.00074192,60]
[321184820,1711953040440,-153.0,0.00074192,60]
[321184821,1711953040449,-153.0,0.00074192,60]
[321184822,1711953040458,-153.0,0.00074192,60]
[321184823,1711953040467,-153.0,0.00074192,60]
[321184824,1711953040476,-153.0,0.00074192,60]
[321184825,1711953040484,-153.0,0.00074192,60]
[321184826,1711953040493,-153.0,0.00074192,60]
[321184827,1711953040502,-153.0,0.00074192,60]
[321184828,1711953040512,-153.0,0.00074192,60]
[321184829,1711953040522,-153.0,0.00074192,60]
[321184830,1711953040531,-153.0,0.00074192,60]
[321184831,1711953040539,-153.0,0.00074192,60]
[321184832,1711953040549,-153.0,0.00074192,60]
[321184833,1711953040557,-153.0,0.00074192,60]
[321184834,1711953040566,-153.0,0.00074192,60]
[321184835,1711953040575,-153.0,0.00074192,60]
[321184836,1711953040584,-153.0,0.00074192,60]
[321184837,1711953040592,-153.0,0.00074192,60]
[321184838,1711953040602,-153.0,0.00074192,60]
[321184839,1711953040611,-153.0,0.00074192,60]
[321184840,1711953040620,-153.0,0.00074192,60]
[321184841,1711953040629,-153.0,0.00074192,60]
[321184842,1711953040639,-153.0,0.00074192,60]
[321184843,1711953040647,-153.0,0.00074192,60]
[321184844,1711953040657,-153.0,0.00074192,60]
[321184845,1711953040668,-153.0,0.00074192,60]
[321184846,1711953040678,-153.0,0.00074192,60]
[321184847,1711953040687,-153.0,0.00074192,60]
[321184848,1711953040696,-153.0,0.00074192,60]
[321184849,1711953040705,-153.0,0.00074192,60]
[321184850,1711953040714,-15372.5223852,0.000748,3]
[321184851,1711953040726,-13516.63804376,0.000748,3]
[321184852,1711953040735,-4001.039891,0.000748,120]
[321184853,1711953040744,-500.0,0.000749,120]
[321184854,1711953040817,-2413.11776408,0.000749,2]
[321184855,1711953040828,-203.42024939,0.00074991,3]
[321184856,1711953040837,-282.90146324,0.00074996,7]
[321184857,1711953040848,-5470.03437479,0.00074997,7]
[321184858,1711953040857,-884.78495058,0.00074997,7]
[321184859,1711953040867,-1195.45708358,0.00074998,7]
[321184860,1711953040877,-269.21455228,0.00074998,7]
[321184861,1711953040885,-216.88773324,0.00074998,7]
[321184862,1711953040894,-4023.09332483,0.00074998,7]
[321184863,1711953040905,-3521.1,0.00074998,7]